Cogmind - Beta 16 @@@ ROGUE MODE // 2025.11.09 @ 10:23:11 Player: Velocity Result: Destroyed by G-47 Trooper with Particle Gun Performance ------------- Evolutions (3) 1500 Regions Visited (10) 2000 Robots Destroyed (55) 275 Value Destroyed (2130) 2130 Prototype IDs (23) 460 Alien Tech Used (0) 0 Bonus (1546) 1546 TOTAL SCORE: 7911 Bonus ------- High Alert Combat Kills 46 Entered Garrisons 200 Used RIF Installer 1000 Aligned with FarCom 300 Cogmind --------- Core Integrity 0/700 Matter 244/300 Energy 100/100 System Corruption 14% Temperature Cool (18) Movement Core (200) Ox3 Location -7/Lower Caves Parts ------- > --- POWER (1) -------- (None) > --- PROPULSION (4) --- (None) > --- UTILITY (6) ------ Medium Storage Unit Hacking Suite Relay Coupler [Brawler] (24) > --- WEAPON (2) ------- Makeshift Sword > --- INVENTORY (10) --- Light Nuclear Core Light Nuclear Core Improved Deuterium Engine Carbon-fiber Leg Seismic Detector Makeshift Shrapnel Gun Improved Grenade Launcher Missile Launcher Peak State ------------ > --- POWER ------------ Light Ion Engine > --- PROPULSION ------- Titanium Leg Improved Titanium Leg Potential Leg Potential Leg > --- UTILITY ---------- Cryofiber Web Improved Heat Sink Medium Storage Unit Hardened Medium Armor Plating Relay Coupler [Swarmer] > --- WEAPON ----------- Improved Datajack Heavy Hammer > --- INVENTORY -------- Improved Ion Engine Light Nuclear Core Improved Deuterium Engine Light Treads Seismic Detector Relay Coupler [Grunt] Relay Coupler [Brawler] Missile Launcher Missile Launcher [Rating: 48] Favorites ----------- Power Light Ion Engine Engine Light Ion Engine Propulsion Potential Leg Treads Light Treads Leg Potential Leg Hover Unit Gravmag System Utility Medium Storage Unit Device Seismic Detector Storage Medium Storage Unit Hackware Hacking Suite Protection Hardened Medium Armor Plating Weapon Heavy Hammer Energy Gun Small Laser Energy Cannon Beam Cannon Ballistic Gun Makeshift Shrapnel Gun Ballistic Cannon Flak Cannon Launcher Missile Launcher Impact Weapon Heavy Hammer Slashing Weapon Makeshift Sword Special Melee Weapon Improved Datajack Build | -11 -10 -10 -10 -9 -8 -8 -8 -7 -7 -7 ------- Run | Yrd Mat Min Exi Min Mat Gar Mat Fac Low Low Slots Evolved 6 | . . . . . 4 . . 2 . . Power . | . . . . . . . . . . . Propulsion 2 | . . . . . 1 . . 1 . . Utility 4 | . . . . . 3 . . 1 . . Weapon . | . . . . . . . . . . . Parts Attached 50 | 7 1 . 3 1 10 6 1 7 8 6 Power 5 | 1 . . . . 2 1 . . 1 . Engine 5 | 1 . . . . 2 1 . . 1 . Core . | . . . . . . . . . . . Reactor . | . . . . . . . . . . . Propulsion 9 | 2 . . 2 . . . 1 3 . 1 Treads 1 | . . . . . . . . . . 1 Leg 7 | 2 . . 2 . . . 1 2 . . Wheel . | . . . . . . . . . . . Hover 1 | . . . . . . . . 1 . . Flight . | . . . . . . . . . . . Utility 17 | 2 . . 1 . 4 3 . 3 3 1 Device 6 | 1 . . . . 2 1 . 1 1 . Storage 3 | 1 . . 1 . . . . 1 . . Processor . | . . . . . . . . . . . Hackware 5 | . . . . . . 1 . 1 2 1 Protection 3 | . . . . . 2 1 . . . . Artifact . | . . . . . . . . . . . Weapon 19 | 2 1 . . 1 4 2 . 1 4 4 Energy Gun 5 | 2 . . . . . . . 1 . 2 Energy Cannon 1 | . 1 . . . . . . . . . Ballistic Gun 4 | . . . . 1 . 1 . . 2 . Ballistic Cannon 3 | . . . . . 2 1 . . . . Launcher 3 | . . . . . . . . . 2 1 Special Weapon . | . . . . . . . . . . . Impact Weapon 1 | . . . . . 1 . . . . . Slashing Weapon 1 | . . . . . . . . . . 1 Piercing Weapon . | . . . . . . . . . . . Special Melee Weapon 1 | . . . . . 1 . . . . . Unidentified Prototypes . | . . . . . . . . . . . Corrupted Parts 1 | . . . . . . . . . 1 . System Corruption 4 | . . . . . . . . . 4 . Parts Lost 27 | . . . . . . 9 . 6 9 3 Power 4 | . . . . . . 2 . 1 1 . Propulsion 6 | . . . . . . . . 1 4 1 Utility 10 | . . . . . . 3 . 3 2 2 Weapon 7 | . . . . . . 4 . 1 2 . Highest Loss Streak 6 | . . . . . . 3 . 6 6 3 To Critical Strikes . | . . . . . . . . . . . Average Backups 7 | 2 4 6 6 8 9 9 8 8 7 8 Power 2 | . 1 1 1 1 1 2 2 2 2 3 Propulsion 1 | 1 2 2 2 2 2 1 1 1 2 1 Utility 1 | . . 1 1 1 1 2 3 3 1 1 Weapon 1 | . 1 2 2 2 3 2 1 1 . 2 Tool/Special . | . . . . . . . . . . . Unused Backups 12 | . . . . 3 4 1 . . . 4 Power 3 | . . . . . . . . . . 3 Propulsion 6 | . . . . 2 3 . . . . 1 Utility 1 | . . . . . . 1 . . . . Weapon 2 | . . . . 1 1 . . . . . Tool/Special . | . . . . . . . . . . . Average Slot Usage (%) 66 | . 100 100 100 100 77 74 60 68 42 47 Engine 5 | . 14 14 14 14 9 8 . 3 . . Leg 14 | . 28 28 28 28 18 18 18 25 3 . Device 8 | . 14 14 14 14 18 13 9 6 . 6 Storage 9 | . 14 14 14 14 9 9 9 7 7 7 Hackware 10 | . . . . . . 3 9 5 19 22 Protection 2 | . . . . . 5 6 9 7 . . Energy Gun 2 | . 20 14 14 8 . . . 2 . . Energy Cannon 2 | . 7 14 14 14 . . . . . . Ballistic Gun 1 | . . . . 5 1 1 . . . 2 Ballistic Cannon 2 | . . . . . 14 11 . . . . Impact Weapon 3 | . . . . . . 1 6 7 6 . Peak Build Rating 48 | 7 7 7 25 27 36 38 36 48 37 26 Average Rating 22 | 5 6 7 14 26 32 34 32 36 15 20 On Entrance 20 | . 7 7 7 25 27 36 32 36 35 17 Avg Prop Armor Cover (%) 6 | . . . . . . . . 6 11 . Naked Turns . | . . . . . . . . . . . Heaviest Build 39 | 11 13 13 18 20 39 39 22 26 32 16 Greatest Support 97 | 20 20 20 60 60 60 60 77 97 82 20 Greatest Overweight (x) 6 | 1 . . . . . . . . 6 5 Average Overweight (x) . | . . . . . . . . . 3 3 Largest Inventory Capacity 10 | 8 8 8 10 10 10 10 10 10 10 10 Average Capacity 9 | 7 8 8 8 10 10 10 10 10 10 10 Most Carried 10 | 4 6 6 8 10 10 10 9 10 10 9 Average Carried 8 | 2 4 6 6 9 9 9 8 8 7 8 Final Capacity 10 | 8 8 8 10 10 10 10 10 10 10 10 Final Carried 10 | 4 6 6 8 10 9 9 8 10 7 8 Class Distribution -------------------- 93% | Mutant 6% | Hacker-Mutant Dominant Class ---------------- Mutant | -10/Materials Mutant | -10/Mines Mutant | -10/Exiles Mutant | -9/Mines Mutant | -8/Materials Mutant | -8/Garrison Mutant | -8/Materials Mutant | -7/Factory Mutant | -7/Lower Caves Hacker-Mutant | -7/Lower Caves Resources | -11 -10 -10 -10 -9 -8 -8 -8 -7 -7 -7 ----------- Run | Yrd Mat Min Exi Min Mat Gar Mat Fac Low Low Matter Collected 1661 | 257 . . . 60 145 326 182 214 435 42 Remotely . | . . . . . . . . . . . Salvage Created 1289 | 55 . . . 56 145 326 65 259 383 . Parts 71 | 6 . . . 8 12 18 3 5 19 . Haulers Intercepted 1 | . . . . . 1 . . . . . Recyclers Shooed . | . . . . . . . . . . . Parts Field Recycled . | . . . . . . . . . . . Retrieved Matter . | . . . . . . . . . . . Parts Self-Destructed 17 | . . . . . . . . . 16 1 Prevented 1 | . . . . . . . . . . 1 Parts Restored . | . . . . . . . . . . . Kills | -11 -10 -10 -10 -9 -8 -8 -8 -7 -7 -7 ------- Run | Yrd Mat Min Exi Min Mat Gar Mat Fac Low Low Combat Hostiles Destroyed 49 | . . . . 5 5 18 1 5 15 . Melee 7 | . . . . . . . 1 2 4 . Guns 5 | . . . . 2 . . . 1 2 . Cannons 25 | . . . . 3 5 17 . . . . AOE 9 | . . . . . . . . . 9 . Classes Destroyed 10 | 1 . . . 1 2 3 1 1 1 . Worker 2 | . . . . . . . 1 1 . . Tunneler 3 | 3 . . . . . . . . . . Hauler 1 | . . . . . 1 . . . . . Swarmer 20 | . . . . 4 3 6 . . 7 . Grunt 12 | . . . . . . 5 . 3 4 . Brawler 4 | . . . . . . . . 2 2 . Duelist 1 | . . . . . . . . . 1 . Sentry 6 | . . . . . 2 2 1 . 1 . Hunter 2 | . . . . . . 2 . . . . Programmer 3 | . . . . . . 3 . . . . Best Kill Streak 9 | 3 . . . 3 2 4 2 4 9 . Combat Bots Only 9 | . . . . 3 2 4 1 3 9 . Max Kills in Single Turn 3 | 1 . . . 1 1 2 1 1 3 . Gunslinging . | . . . . . . . . . . . Exploded 3 | . . . . . . . . . 3 . Melee 1 | . . . . . . . 1 1 1 . Uniques/NPCs Destroyed 1 | . . . . 1 . . . . . . YI-UF0 (-9/Mines) Combat | -11 -10 -10 -10 -9 -8 -8 -8 -7 -7 -7 -------- Run | Yrd Mat Min Exi Min Mat Gar Mat Fac Low Low Hostile Shots Fired 476 | . . . . 73 13 165 4 61 125 35 Missed 151 | . . . . 33 3 44 2 18 40 11 Hits 325 | . . . . 40 10 121 2 43 85 24 Melee 7 | . . . . . . . . 7 . . Projectile 318 | . . . . 40 10 121 2 36 85 24 AOE 10 | . . . . 10 . . . . . . Critical Strikes 9 | . . . . . 1 4 . 3 1 . Actively Blocked 1 | . . . . . . 1 . . . . Part Disruptions 1 | . . . . . . 1 . . . . Damage Taken 4940 | . . . . 598 104 1670 31 687 1464 386 Core 1109 | . . . . 87 39 276 . 50 534 123 Absorbed by Shields 8 | . . . . . . 8 . . . . Redirected to Shielding 109 | . . . . . . 109 . . . . Core Remaining (%) 69 | 100 . . . 65 . . 42 . . . Volleys Fired 123 | 5 . . . 11 8 61 . 10 28 . Largest 2 | 2 . . . 2 2 2 . 1 1 . Hottest 100 | 80 . . . 100 74 74 . 69 69 . Shots Fired 192 | 10 . . . 22 16 104 . 11 29 . Gun 66 | 10 . . . 11 . 19 . 11 15 . Cannon 112 | . . . . 11 16 85 . . . . Launcher 14 | . . . . . . . . . 14 . Special . | . . . . . . . . . . . Kinetic 133 | . . . . 4 16 104 . . 9 . Thermal 45 | 10 . . . 18 . . . 11 6 . Explosive 14 | . . . . . . . . . 14 . Electromagnetic . | . . . . . . . . . . . Robot Hit Streak 9 | 4 . . . 9 6 9 . 4 9 . Robot Miss Streak 8 | 3 . . . 2 7 8 . 3 2 . Penetration Max . | . . . . . . . . . . . Secondary Targets . | . . . . . . . . . . . Shots Hit Robots 171 | 5 . . . 15 16 82 2 25 26 . Core Hits 137 | 4 . . . 7 16 75 1 6 28 . Critical Kills 1 | . . . . . . . . 1 . . Critical Parts Destroyed 5 | . . . . . . 1 . 4 . . Critical Strikes 7 | . . . . . . 1 . 5 1 . Burn 1 | . . . . . . . . . 1 . Destroy 1 | . . . . . . 1 . . . . Smash 5 | . . . . . . . . 5 . . Melee Attacks 59 | . . . . . 3 10 2 27 17 . Impact 55 | . . . . . . 10 2 26 17 . Slashing . | . . . . . . . . . . . Piercing . | . . . . . . . . . . . Sneak Attacks 5 | . . . . . 3 . 1 1 . . Combat Hostiles . | . . . . . . . . . . . Follow-up Attacks . | . . . . . . . . . . . Damage Inflicted 4348 | 59 . 11 . 228 195 1548 96 724 1487 . Guns 494 | 55 . . . 107 . 90 . 116 126 . Cannons 1573 | . . . . 121 195 1257 . . . . Explosions 950 | . . . . . . . . . 950 . Melee 1212 | . . . . . . 97 96 608 411 . Ramming 119 | 4 . 11 . . . 104 . . . . Kinetic 1655 | . . . . 64 195 1347 . . 49 . Thermal 412 | 55 . . . 164 . . . 116 77 . Explosive 950 | . . . . . . . . . 950 . Electromagnetic . | . . . . . . . . . . . Impact 1212 | . . . . . . 97 96 608 411 . Slashing . | . . . . . . . . . . . Piercing . | . . . . . . . . . . . Highest Corruption 14 | . . . . . . . . 10 14 14 Average Corruption 11 | . . . . . . . . 9 10 14 Corruption Purged . | . . . . . . . . . . . Corruption Blocked . | . . . . . . . . . . . Effects 111 | . . . . . . . . 10 81 20 Message Errors 28 | . . . . . . . . 1 22 5 Matter Fused 29 | . . . . . . . . 3 20 6 Heat Flow Errors 12 | . . . . . . . . 1 10 1 Energy Discharges 11 | . . . . . . . . 1 7 3 Parts Rejected 1 | . . . . . . . . . 1 . Parts Fused 1 | . . . . . . . . . 1 . Data Loss (minor) 13 | . . . . . . . . 1 10 2 Data Loss (major) 6 | . . . . . . . . 2 4 . Misfires 3 | . . . . . . . . 1 2 . Alerts 4 | . . . . . . . . . 3 1 Misdirections 2 | . . . . . . . . . . 2 Weapon Failures 1 | . . . . . . . . . 1 . Overload Shots . | . . . . . . . . . . . Overflow Damage 344 | . . . . 9 . 80 23 166 66 . Projectiles 9 | . . . . 9 . . . . . . Explosions . | . . . . . . . . . . . Melee 335 | . . . . . . 80 23 166 66 . Knockbacks 59 | . . . . . 3 50 . 4 2 . Impact 6 | . . . . . . 1 . 3 2 . Kinetic 48 | . . . . . 3 45 . . . . Secondary 5 | . . . . . . 4 . 1 . . Self-Inflicted Damage 47 | . . . . . . . . . 47 . Shots 2 | . . . . . . . . . 2 . Rammed . | . . . . . . . . . . . Targets Rammed 27 | 1 . 2 . 1 . 23 . . . . Kicked 27 | 1 . 2 . 1 . 23 . . . . Crushed . | . . . . . . . . . . . Highest Temperature 265 | 36 . . . 156 30 148 . 142 265 116 Average Temperature 58 | 19 . . . 62 13 43 . 44 94 65 Received Heat Transfer 1143 | . . . . . 45 474 . 315 135 174 Siege Activations . | . . . . . . . . . . . Martial Activations . | . . . . . . . . . . . Shielding Activations . | . . . . . . . . . . . Robots Disrupted . | . . . . . . . . . . . Combat Hostiles . | . . . . . . . . . . . Robots Corrupted 6 | . . . . . . 2 1 3 . . Combat Hostiles 3 | . . . . . . 1 . 2 . . Parts Fried 4 | . . . . . . . . 3 1 . Impact Corruptions 18 | . . . . . . 5 2 8 3 . Robots Melted . | . . . . . . . . . . . Combat Hostiles . | . . . . . . . . . . . Parts Melted 1 | . . . . 1 . . . . . . Heat Transferred 928 | 125 . . . 359 . . . 222 222 . Parts Sabotaged . | . . . . . . . . . . . Parts Stolen . | . . . . . . . . . . . Parts Stripped . | . . . . . . . . . . . Power Chain Reactions . | . . . . . . . . . . . Alert | -11 -10 -10 -10 -9 -8 -8 -8 -7 -7 -7 ------- Run | Yrd Mat Min Exi Min Mat Gar Mat Fac Low Low Maximum Alert Level 2 | . . . . . . 2 1 . . . Low Security (%) 65 | 100 100 100 . 100 100 19 . 100 . . Level 1 14 | . . . . . . 25 100 . . . Level 2 19 | . . . . . . 54 . . . . Level 3 . | . . . . . . . . . . . Level 4 . | . . . . . . . . . . . Level 5 . | . . . . . . . . . . . High Security . | . . . . . . . . . . . Max Security . | . . . . . . . . . . . Peak Influence 558 | 10 14 1 . 85 67 558 271 100 . . Initial 271 | . . 1 . . . 43 271 100 . . Average 150 | 1 2 . . 16 36 358 247 24 . . Influence Increases 1391 | 15 14 . . 113 167 605 39 161 277 . Destroy 0b10 Robot/C 840 | . . . . 80 100 345 15 75 225 . Destroy 0b10 Robot/NC 32 | 15 . . . . 5 4 4 4 . . Destroy Leader 100 | . . . . 10 32 18 8 16 16 . Successful Hack 26 | . 14 . . 8 . . . 4 . . Anti-Garrison Action 163 | . . . . . . 163 . . . . Destroy Structure 8 | . . . . . . 6 . 2 . . Partial Spotted 27 | . . . . . 15 . . 12 . . Lose Combat Pursuer 195 | . . . . 15 15 69 12 48 36 . Influence Decreases 1391 | 15 10 4 . 113 100 114 377 352 305 1 Entered New Map 446 | . . 3 . . . 24 287 120 11 1 Time Decay 740 | 15 10 1 . 113 100 . 90 192 219 . Lost Part 205 | . . . . . . 90 . 40 75 . Squads Dispatched 3 | . 1 . . . 1 . . 1 . . Investigation . | . . . . . . . . . . . Extermination 1 | . . . . . . . . 1 . . Reinforcement 1 | . 1 . . . . . . . . . Assault . | . . . . . . . . . . . Garrison 1 | . . . . . 1 . . . . . Intercept . | . . . . . . . . . . . Searches Triggered . | . . . . . . . . . . . Construction Impeded . | . . . . . . . . . . . Haulers Reinforced . | . . . . . . . . . . . Active Scanning Responses . | . . . . . . . . . . . Cargo Convoy Interrupts . | . . . . . . . . . . . Stealth | -11 -10 -10 -10 -9 -8 -8 -8 -7 -7 -7 --------- Run | Yrd Mat Min Exi Min Mat Gar Mat Fac Low Low Distress Signals 4 | . . . . . 1 . 3 . . . Communications Jammed . | . . . . . . . . . . . Distress Signals . | . . . . . . . . . . . Times Spotted 77 | . 1 . . 10 9 23 7 7 15 5 Peak Tracking Total 7 | . 1 . . 4 3 3 5 3 7 5 Tactical Retreats 10 | . . . . 1 1 3 1 3 1 . Traps | -11 -10 -10 -10 -9 -8 -8 -8 -7 -7 -7 ------- Run | Yrd Mat Min Exi Min Mat Gar Mat Fac Low Low Traps Triggered 6 | . . . . . . 6 . . . . Indirectly . | . . . . . . . . . . . Trap Hack Attempts . | . . . . . . . . . . . Triggered . | . . . . . . . . . . . Disarmed . | . . . . . . . . . . . Reprogrammed . | . . . . . . . . . . . Reused . | . . . . . . . . . . . Traps Extracted . | . . . . . . . . . . . Installed 1 | . . . . 1 . . . . . . Triggered . | . . . . . . . . . . . Most Traps Carried 2 | . . . . 2 . . . . . . Machines | -11 -10 -10 -10 -9 -8 -8 -8 -7 -7 -7 ---------- Run | Yrd Mat Min Exi Min Mat Gar Mat Fac Low Low Machines Disabled 3 | . . . . . . 2 . . 1 . Max in Single Turn 1 | . . . . . . 1 . . 1 . Garrison Relay 2 | . . . . . . 2 . . . . Machines Repaired . | . . . . . . . . . . . Machines Dismantled . | . . . . . . . . . . . Machines Sabotaged . | . . . . . . . . . . . Overloaded Fab Kills . | . . . . . . . . . . . Hacking | -11 -10 -10 -10 -9 -8 -8 -8 -7 -7 -7 --------- Run | Yrd Mat Min Exi Min Mat Gar Mat Fac Low Low Machines Accessed 10 | . 1 . 2 1 1 1 2 2 . . Terminals 6 | . 1 . . 1 . 1 2 1 . . Fabricators 1 | . . . . . . . . 1 . . Repair Stations . | . . . . . . . . . . . Recycling Units . | . . . . . . . . . . . Scanalyzers . | . . . . . . . . . . . Garrison Access 1 | . . . . . 1 . . . . . Total Hacks 16 | . 2 . 2 2 1 2 2 5 . . Successful 8 | . 1 . 2 1 1 . 2 1 . . Failed 8 | . 1 . . 1 . 2 . 4 . . Catastrophic 2 | . . . . . . 1 . 1 . . Database Lockouts . | . . . . . . . . . . . Manual 4 | . . . 1 2 . . 1 . . . Terminals 9 | . 2 . . 2 . 2 2 1 . . Fabricators 4 | . . . . . . . . 4 . . Repair Stations . | . . . . . . . . . . . Recycling Units . | . . . . . . . . . . . Scanalyzers . | . . . . . . . . . . . Garrison Access 1 | . . . . . 1 . . . . . Terminal Hacks 5 | . 1 . 2 1 . . 1 . . . Record 1 | . . . 1 . . . . . . . Branch Access Points 1 | . . . . 1 . . . . . . Emergency Access Points 1 | . 1 . . . . . . . . . Maintenance Status 1 | . . . . . . . 1 . . . Proto ID Catalog 1 | . . . 1 . . . . . . . Fabricator Hacks 1 | . . . . . . . . 1 . . Build 1 | . . . . . . . . 1 . . Repair Station Hacks . | . . . . . . . . . . . Recycling Unit Hacks . | . . . . . . . . . . . Scanalyzer . | . . . . . . . . . . . Garrison Access Hacks 1 | . . . . . 1 . . . . . Unlock Access 1 | . . . . . 1 . . . . . Unauthorized Hacks 1 | . . . . . . . 1 . . . Terminals 1 | . . . . . . . 1 . . . Skim 1 | . . . . . . . 1 . . . Fabricators . | . . . . . . . . . . . Repair Stations . | . . . . . . . . . . . Recycling Units . | . . . . . . . . . . . Scanalyzers . | . . . . . . . . . . . Garrison Access . | . . . . . . . . . . . Data Cores Recovered . | . . . . . . . . . . . Used . | . . . . . . . . . . . Hacking Detections 6 | . 1 . . . 1 1 1 2 . . Full Trace Events . | . . . . . . . . . . . Feedback Events . | . . . . . . . . . . . Feedback Blocked . | . . . . . . . . . . . Robot Schematics Acquired . | . . . . . . . . . . . Robots Built . | . . . . . . . . . . . Authchips . | . . . . . . . . . . . Time . | . . . . . . . . . . . Total Robot Build Rating . | . . . . . . . . . . . Part Schematics Acquired . | . . . . . . . . . . . Parts Built 2 | . . . . . . . . 2 . . Authchips . | . . . . . . . . . . . Time 117 | . . . . . . . . 117 . . Total Part Build Rating 14 | . . . . . . . . 14 . . Part Studies Acquired . | . . . . . . . . . . . Parts Repaired . | . . . . . . . . . . . Time . | . . . . . . . . . . . Parts Recycled . | . . . . . . . . . . . Recycled Matter . | . . . . . . . . . . . Retrieved Matter . | . . . . . . . . . . . Retrieved Components . | . . . . . . . . . . . Parts Scanalyzed . | . . . . . . . . . . . Part Schematics Acquired . | . . . . . . . . . . . Parts Damaged . | . . . . . . . . . . . Bothacking | -11 -10 -10 -10 -9 -8 -8 -8 -7 -7 -7 ------------ Run | Yrd Mat Min Exi Min Mat Gar Mat Fac Low Low Used RIF Installer 2 | . . . . . . 2 . . . . Threat Obfuscator 1 | . . . . . . 1 . . . . Robots Hacked 2 | . . . . . 1 . . 1 . . Non-combat 1 | . . . . . 1 . . . . . Combat 1 | . . . . . . . . 1 . . Robot Hacks Applied 4 | . . . . . 3 . . 1 . . parse_system 2 | . . . . . 1 . . 1 . . no_distress 1 | . . . . . 1 . . . . . find_recycling 1 | . . . . . 1 . . . . . Relay Couplers Released 8 | . . . . . . 8 . . . . Machine Destruction 8 | . . . . . . 8 . . . . Attached 3 | . . . . . . 1 . . 2 . Fabnet Peak Effective % . | . . . . . . . . . . . Robots Rewired . | . . . . . . . . . . . Allies Hacked . | . . . . . . . . . . . Hacks Repelled . | . . . . . . . . . . . Allies | -11 -10 -10 -10 -9 -8 -8 -8 -7 -7 -7 -------- Run | Yrd Mat Min Exi Min Mat Gar Mat Fac Low Low Total Allies 1 | . . . . 1 . . . . . . Largest Group 1 | . . . . 1 . . . . . . Highest-Rated Group 31 | . . . . 31 . . . . . . Highest-Rated Ally 31 | . . . . 31 . . . . . . Total Orders . | . . . . . . . . . . . Ally Attacks 3 | . . . . 3 . . . . . . Total Damage 42 | . . . . 42 . . . . . . Kills . | . . . . . . . . . . . Allies Corrupted . | . . . . . . . . . . . Allies Melted . | . . . . . . . . . . . Intel | -11 -10 -10 -10 -9 -8 -8 -8 -7 -7 -7 ------- Run | Yrd Mat Min Exi Min Mat Gar Mat Fac Low Low Active Infowar (turns) 2229 | 9 85 380 271 596 233 655 . . . . Structural 886 | . . . . . 231 655 . . . . Seismic 1888 | 9 85 380 271 596 233 314 . . . . Robot Analysis Total . | . . . . . . . . . . . Derelict Logs Recovered 7 | . . 2 . 2 . . . . 3 . Drone Launches . | . . . . . . . . . . . Drone Recoveries . | . . . . . . . . . . . Exploration | -11 -10 -10 -10 -9 -8 -8 -8 -7 -7 -7 ------------- Run | Yrd Mat Min Exi Min Mat Gar Mat Fac Low Low Turns Passed 6323 | 88 85 380 271 596 233 1204 191 621 2175 479 Spaces Moved 4044 | 50 69 315 253 541 174 980 151 448 873 190 Core 871 | 4 . . . . . . . . 694 173 Treads 17 | . . . . . . . . . . 17 Legs 3156 | 46 69 315 253 541 174 980 151 448 179 . Wheels . | . . . . . . . . . . . Hover . | . . . . . . . . . . . Flight . | . . . . . . . . . . . Fastest Speed 50 | 50 120 120 90 90 90 90 90 103 110 160 Average Speed 134 | 116 120 120 105 90 90 90 90 106 235 245 Slowest Speed 350 | 120 120 120 120 90 90 90 103 110 350 300 Overloaded Moves . | . . . . . . . . . . . Propulsion Burnouts . | . . . . . . . . . . . Robots Hopped . | . . . . . . . . . . . Potential Cave-ins 5 | . . . . 5 . . . . . . Cave-ins Triggered . | . . . . . . . . . . . Exploration Rate (%) 41 | 5 20 78 60 90 17 61 14 13 79 20 Regions Visited 10 Branch Regions 5 Pre-discovered Areas 3 | . . 1 1 1 . . . . . . Known Exits Taken 3 | . . . . . 1 . 1 1 . . Unknown Exits Taken 6 | 1 1 1 1 1 . . . . 1 . Scrap Searched 6 | . . . . 2 . . . . 2 2 Spaces Dug 4 | . . . . . . 2 . 2 . . Terrain Destroyed 62 | . . . . . . 2 . 2 58 . Melee 4 | . . . . . . 2 . 2 . . Projectile . | . . . . . . . . . . . AOE 58 | . . . . . . . . . 58 . Terrain Rammed . | . . . . . . . . . . . Walls Destroyed . | . . . . . . . . . . . Machines Disabled . | . . . . . . . . . . . Actions | -11 -10 -10 -10 -9 -8 -8 -8 -7 -7 -7 --------- Run | Yrd Mat Min Exi Min Mat Gar Mat Fac Low Low Total 4626 | 66 71 316 257 630 236 1180 201 534 932 203 Wait 230 | . . . . 60 15 72 47 35 1 . Move 4034 | 49 68 314 252 540 174 978 150 447 872 190 Hop . | . . . . . . . . . . . Pick Up 32 | 4 1 . . 9 9 4 . 4 1 . Fast Attach 38 | 7 1 . 1 . 7 5 1 7 4 5 Attach 17 | . . . . . 2 4 1 2 6 2 Detach 9 | . 1 . 1 . 1 1 . . 2 3 Swap 12 | . . . 2 1 3 6 . . . . Drop 30 | . . . 1 7 14 2 . 2 1 3 Fire 123 | 5 . . . 11 8 61 . 10 28 . Melee 59 | . . . . . 3 10 2 27 17 . Ram . | . . . . . . . . . . . Kick 27 | 1 . 2 . 1 . 23 . . . . Crush . | . . . . . . . . . . . Escape Stasis 14 | . . . . . . 14 . . . . Rewire . | . . . . . . . . . . . Trap 1 | . . . . 1 . . . . . . Miscellaneous . | . . . . . . . . . . . Route ------- -11/Scrapyard -10/Materials -10/Mines -10/Exiles -9/Mines -8/Materials (discovered 2 exits: Fac / Gar) -8/Garrison (discovered 3 exits: *Mat x3) -8/Materials -7/Factory -7/Lower Caves -7/Lower Caves (discovered 1 exit: [*Fac]) History --------- Turn | Location | Event 15 | -11/Scrapyard | Discovered new exit (range 15) 89 | -11/Scrapyard | Entered Materials 162 | -10/Materials | Discovered new exit (range 9) 174 | -10/Materials | Entered Mines 298 | -10/Mines | Learned location of Storage (-9) 317 | -10/Mines | Build established: Mutant 389 | -10/Mines | Learned location of 1 exit from Materials 549 | -10/Mines | Deemed a non-threat by the Exiles lab entrance 549 | -10/Mines | Discovered new exit (range 5) 554 | -10/Mines | Entered Exiles 588 | -10/Exiles | Met 8R-AWN 607 | -10/Exiles | Met EX-HEX 655 | -10/Exiles | Met EX-BIN 671 | -10/Exiles | Aligned with FarCom system 672 | -10/Exiles | Given EX-Vault access code 701 | -10/Exiles | Opened EX-Vault 708 | -10/Exiles | Found Potential Leg 711 | -10/Exiles | Found Potential Leg 731 | -10/Exiles | Warned to stay clear of 0b10 Research branches 755 | -10/Exiles | Met EX-DEC 760 | -10/Exiles | Learned location of Zion (-6) 816 | -10/Exiles | Discovered new exit (range 12) 825 | -10/Exiles | Left Exiles lab with Potential Leg 825 | -10/Exiles | Entered Mines 850 | -9/Mines | Found a hidden stash of uninstalled traps 883 | -9/Mines | Received a Mining Laser from a helpful Derelict 1160 | -9/Mines | Found DCF Scrap (13 items) 1192 | -9/Mines | Destroyed YI-UF0 1309 | -9/Mines | Discovered new exit (range 7) 1421 | -9/Mines | Entered Materials 1421 | -8/Materials | Evolved 4 slots: Propulsion x1, Utility x3 1422 | -8/Materials | Identified exit to Factory 1630 | -8/Materials | Garrison activated, responded to threat 1654 | -8/Materials | Identified exit to Garrison 1654 | -8/Materials | Entered Garrison 1678 | -8/Garrison | Triggered checkpoint 1713 | -8/Garrison | Garrison Relay disabled 1811 | -8/Garrison | Triggered checkpoint 1841 | -8/Garrison | Discovered new exit (range 10) 1878 | -8/Garrison | Triggered checkpoint 1912 | -8/Garrison | Triggered checkpoint 2012 | -8/Garrison | Installed Relay Interface Framework 2076 | -8/Garrison | Triggered checkpoint 2147 | -8/Garrison | Lost 3 parts (1u2w) 2198 | -8/Garrison | Discovered new exit (range 9) 2252 | -8/Garrison | Triggered checkpoint 2278 | -8/Garrison | Expanded RIF knowledge: Threat Obfuscation 2332 | -8/Garrison | Triggered checkpoint 2345 | -8/Garrison | Garrison Relay disabled 2373 | -8/Garrison | Discovered new exit (range 15) 2667 | -8/Garrison | Spotted B-75 Beast 2668 | -8/Garrison | Spotted B-75 Beast 2788 | -8/Garrison | Triggered checkpoint 2799 | -8/Garrison | Core integrity fell below 50% 2858 | -8/Garrison | Entered Materials 3027 | -8/Materials | Discovered exit to Factory (range 13) 3049 | -8/Materials | Entered Factory 3049 | -7/Factory | Evolved 2 slots: Propulsion x1, Utility x1 3050 | -7/Factory | Identified exit to Lower Caves 3234 | -7/Factory | Fabricated Quantum Capacitor (x2) 3372 | -7/Factory | System corruption reached 10% 3402 | -7/Factory | Lost 6 parts (1p1n3u1w) 3670 | -7/Factory | Entered Lower Caves 3806 | -7/Lower Caves | Encountered a Warlord checkpoint 3886 | -7/Lower Caves | Attracted the attention of an 0b10 outpost 3970 | -7/Lower Caves | Destroyed 9 combat bots 3975 | -7/Lower Caves | Lost 6 parts (1p4n1w) 4474 | -7/Lower Caves | Learned Factory trap positions 5249 | -7/Lower Caves | Learned location of 1 exit from Factory 5489 | -7/Lower Caves | Learned Factory garrison access intel 5489 | -7/Lower Caves | Discovered new exit (range 7) 5507 | -7/Lower Caves | Core integrity fell below 50% 5531 | -7/Lower Caves | Core integrity fell below 20% 5845 | -7/Lower Caves | Entered another Lower Caves area 5981 | -7/Lower Caves | Spotted B-75 Beast 6130 | -7/Lower Caves | Discovered new exit (range 14) 6198 | -7/Lower Caves | Build established: Hacker-Mutant 6324 | -7/Lower Caves | Destroyed by G-47 Trooper with Particle Gun Last Messages --------------- 06043_ Acquired Wave Gun. 06044_ Dropped Wave Gun. 06048_ System corrupted: Matter fused (-10). 06077_ System corrupted: Energy discharge (-37). 06124_ System corrupted: Matter fused (-10). 06130_ EXIT=FOUND 06153_ System corrupted: IFF burst signal emitted. 06168_ C4CS4YMWHOFILT6W,,EGLSHSWN1OYE 06304_ Recoil Stabilizer destroyed. 06313_ System corrupted: Matter fused (-6). 06322_ Lgt. Treads destroyed. 06322_ Mak. Hacking Suite destroyed. 06322_ Knocked back. 06323_ Acquired 1 matter. Map ----- +----------------------------------------------------+ | ?????????????????????????????????????????????????? | | ?????????????????????????????????????????????????? | | ?????????????????????????????????????????????????? | | ?????????????????????????????????????????????????? | | ?????????????????????????????????????????????????? | | ?????????????????????????????????????????????????? | | ????????????????????????????????????####?????????? | | ??????????????????????#####??????### ##????????? | | ??????????????????????? ????## #??####### | | ????????????????????????? #### ???# | | ??????????????????????????? #???# #### | | ????????????????????????????? #???# #??? | | ??????????????????????????????? ##??# #??? | | ????????????????????????????????? ##?# #??? | | ??????????????????????????????????# #?# #??? | | ?????????????????????????????????## #?# #??? | | ????????????????????????????????## #?# #?## | | ???????????????????????????????## ## ### # # | | ???????????????????????????????# ##??### | | ???????????????????????????????# ##??## | | ???????????????????????????????## #??## | | ????????????????????###?????????# #??# | | ??????????????????### ##????####g #### | | ?????????????????## ###### g | | ?????????????????# g | | ?????????????????#### @ g######++###### | | ????????????????????# #### # ## " !"" "" | | ???????????????## ### # ## " "" | | ???????????????# "??# ## # "" "# | | ??????????????## #?## ?# T# | | ?????????????? ## ?# # | | ?????????????# ## ## """" + | | ?????????????# ] " | | ?????????????# $ ## %! | | ?????????????# #??## ## # + # | | ?????????????# ????##?# # # "# | | ????????????? ???????# # ## [## [ # "# | | ??????????????## ##????????# # # # [ # # | | ??????????????????????????? # # # "# | | ??????????????????????????? ## # # # "# | | ??????????????????????????? ? ########++###### | | ?????????????????????????? ? ## % | | ?????????????????????????? | | ?????????????????????????? ##??????########### | | ?????????????????????????? " ??????????????????? | | ????????????????????????? ??????????????????? | | ?????????????????????????#?####??????????????????? | | ?????????????????????????????????????????????????? | | ?????????????????????????????????????????????????? | | ?????????????????????????????????????????????????? | +----------------------------------------------------+ Best States ------------- Heat Dissipation 62 Energy Generation 12 Energy Capacity 265 Matter Stores 300 Matter Capacity 300 Sight Range 16 Terrain Scan Density 10 Base Temperature (-) 100 Armor Coverage 225 Propulsion Shielding 66 Evasion (%) 57 Recoil Reduction 5 Offensive Hacking 21 Relay Coupler Types 2 Relay Coupler Value 46 Item Schematics ----------------- None Robot Schematics ------------------ None Fabricated ------------ Quantum Capacitor | x2 | -7/Factory | Preloaded Repaired ---------- Nothing Studied --------- None Alien Tech Used ----------------- None Achievements -------------- Join The Dark Side Junior Dev Let Me Out Of Here Maybe Next Time I'll Detach My Launcher Sprinter True Hacker You Will Be Upgraded Challenges ------------ None Game ------ Seed DeuteriumAlphaBay Manual? 0 Play Time 00:46:50 Cumulative 30.3 hours Start 2025.11.09 @ 09:26:27 End 2025.11.09 @ 10:23:11 Sessions 1 Manual Loads 0 Difficulty Rogue Special Mode None Game No. 18 Rogue 12 Adventurer 5 Explorer 1 Win Type - Total 1 Types 1/0/0/0/0/0/0/0/0/0 Lore% 19 Gallery% 43 Achievement% 27 Wizard Run 0 Options --------- Layout 2 ASCII 0 Keyboard 0 Movement Mouse Keybinds 0 Fullscreen 2 Font 24/Smallcaps Map View 50x44 Zoom Use 0% Tactical HUD 1 Map Filters NONE Filters NONE Steam 1 RUN: 820ed528-d1d9-4bbc-b7a3-961078f34f92